lending/lending_fUSD_20241229
["ID","MTS","AMOUNT","RATE_DAILY","PERIOD"]
[347043593,1735482641520,-1305.74,0.00011709,2]
[347043595,1735482641535,-500.0,0.00011709,2]
[347043598,1735482641549,-500.0,0.00011709,2]
[347043600,1735482641563,-500.0,0.00011709,2]
[347043603,1735482641578,-154.455344,0.00011709,2]
[347043606,1735482641593,-1127.57,0.00011709,2]
[347043608,1735482641607,-2332.42,0.00011709,2]
[347043611,1735482641622,-4130.824695,0.00011709,2]
[347043613,1735482641636,-152.736339,0.00011709,2]
[347043616,1735482641652,-4112.121387,0.00011709,2]
[347043618,1735482641667,-500.0,0.00011709,2]
[347043621,1735482641681,-505.16900763,0.00011709,2]
[347043624,1735482641696,-3250.86,0.00011709,2]
[347043626,1735482641710,-500.0,0.00011709,2]
[347043629,1735482641725,-24952.52,0.00011709,2]
[347043631,1735482641740,-500.0,0.00011709,2]
[347043634,1735482641755,-505.13265722,0.00011709,2]
[347043637,1735482641770,-684.79,0.00011709,2]
[347043639,1735482641784,-1668.86,0.00011709,2]
[347043642,1735482641800,-500.0,0.00011709,2]
[347043644,1735482641814,-500.0,0.00011709,2]
[347043647,1735482641829,-2107.82,0.00011709,2]
[347043649,1735482641844,-614.75688955,0.00011709,2]
[347043652,1735482641858,-500.0,0.00011709,2]
[347043654,1735482641873,-500.0,0.00011709,2]
[347043657,1735482641890,-500.0,0.00011709,2]
[347043660,1735482641905,-500.0,0.00011709,2]
[347043662,1735482641919,-500.0,0.00011709,2]
[347043665,1735482641933,-555.91,0.00011709,2]
[347043667,1735482641947,-2404.23,0.00011709,2]
[347043670,1735482641963,-500.0,0.00011709,2]
[347043673,1735482641978,-500.0,0.00011709,2]
[347043675,1735482641995,-500.0,0.00011709,2]
[347043678,1735482642011,-1357.96,0.00011709,2]
[347043680,1735482642026,-518.6,0.00011709,2]
[347043683,1735482642040,-464.1333081,0.00011709,2]
[347043686,1735482642055,-500.0,0.00011709,2]
[347043688,1735482642069,-500.0,0.00011709,2]
[347043691,1735482642084,-500.0,0.00011709,2]
[347043693,1735482642099,-1072.34,0.00011709,2]
[347043696,1735482642112,-500.0,0.00011709,2]
[347043698,1735482642126,-3006.78,0.00011709,2]
[347043701,1735482642141,-4215.19,0.00011709,2]
[347043703,1735482642156,-1704.08,0.00011709,2]
[347043706,1735482642170,-500.0,0.00011709,2]
[347043708,1735482642185,-1603.45,0.00011709,2]
[347043711,1735482642200,-3106.64,0.00011709,2]
[347043712,1735482642215,-2004.59,0.00011709,2]
[347043713,1735482642237,-500.0,0.00011709,2]
[347043714,1735482642255,-500.0,0.00011709,2]
[347043715,1735482642273,-1195.9,0.00011709,2]
[347043718,1735482642290,-500.0,0.00011709,2]
[347043739,1735482642476,-500.0,0.00011709,2]
[347043741,1735482642488,-2717.91,0.00011709,2]
[347043743,1735482642499,-1434.26,0.00011709,2]
[347043746,1735482642508,-506.85820672,0.00011709,2]
[347043748,1735482642518,-500.0,0.00011709,2]
[347043750,1735482642529,-923.67,0.00011709,2]
[347043752,1735482642538,-1688.9,0.00011709,2]
[347043753,1735482642547,-431.14858932,0.00011709,2]
[347043755,1735482642557,-1521.08,0.00011709,2]
[347043758,1735482642566,-2690.86,0.00011709,2]
[347043761,1735482642576,-500.0,0.00011709,2]
[347043762,1735482642585,-1142.94,0.00011709,2]
[347043764,1735482642595,-500.0,0.00011709,2]
[347043766,1735482642604,-500.0,0.00011709,2]
[347043768,1735482642613,-3776.5,0.00011709,2]
[347043770,1735482642623,-302.13048104,0.00011709,2]
[347043772,1735482642632,-500.0,0.00011709,2]
[347043774,1735482642642,-1804.22,0.00011709,2]
[347043776,1735482642651,-500.0,0.00011709,2]
[347043778,1735482642661,-504.76358075,0.00011709,2]
[347043781,1735482642670,-964.63,0.00011709,2]
[347043783,1735482642680,-1327.43,0.00011709,2]
[347043785,1735482642690,-18074.75,0.00011709,2]
[347043787,1735482642699,-505.25973395,0.00011709,2]
[347043789,1735482642709,-500.0,0.00011709,2]
[347043791,1735482642718,-500.0,0.00011709,2]
[347043793,1735482642727,-2447.34,0.00011709,2]
[347043795,1735482642739,-14339.67,0.00011709,2]
[347043798,1735482642748,-504.9464978,0.00011709,2]
[347043800,1735482642758,-2137.65,0.00011709,2]
[347043802,1735482642767,-501.4314522,0.00011709,2]
[347043804,1735482642777,-2745.97,0.00011709,2]
[347043806,1735482642787,-3411.36,0.00011709,2]
[347043808,1735482642796,-1398.6,0.00011709,2]
[347043810,1735482642806,-500.0,0.00011709,2]
[347043812,1735482642816,-500.0,0.00011709,2]
[347043814,1735482642826,-500.0,0.00011709,2]
[347043816,1735482642835,-2110.41,0.00011709,2]
[347043818,1735482642844,-513.25672268,0.00011709,2]
[347043820,1735482642853,-500.0,0.00011709,2]
[347043822,1735482642862,-380.41284404,0.00011709,2]
[347043824,1735482642873,-500.0,0.00011709,2]
[347043826,1735482642885,-2461.04,0.00011709,2]
[347043828,1735482642894,-8517.37,0.00011709,2]
[347043830,1735482642903,-500.0,0.00011709,2]
[347043832,1735482642917,-500.0,0.00011709,2]
[347043834,1735482642926,-1200.55,0.00011709,2]
[347043836,1735482642936,-500.0,0.00011709,2]
[347043838,1735482642945,-2255.91,0.00011709,2]
[347043840,1735482642956,-500.0,0.00011709,2]
[347043842,1735482642966,-1536.38,0.00011709,2]
[347043844,1735482642975,-500.0,0.00011709,2]
[347043846,1735482642986,-1281.14,0.00011709,2]
[347043848,1735482642995,-2204.22,0.00011709,2]
[347043850,1735482643005,-500.0,0.00011709,2]
[347043852,1735482643015,-378.11842237,0.00011709,2]
[347043854,1735482643024,-500.0,0.00011709,2]
[347043856,1735482643034,-500.0,0.00011709,2]
[347043858,1735482643043,-4579.59,0.00011709,2]
[347043860,1735482643053,-500.0,0.00011709,2]
[347043863,1735482643065,-2033.42,0.00011709,2]
[347043865,1735482643075,-387.98251068,0.00011709,2]
[347043867,1735482643084,-560.35372586,0.00011709,2]
[347043869,1735482643094,-617.81,0.0001171,2]
[347043871,1735482643104,-1125.24,0.00011753,2]
[347043873,1735482643113,-352.65,0.00011797,2]
[347043875,1735482643123,-500.0,0.00011821,2]
[347043877,1735482643133,-500.0,0.00011821,2]
[347043879,1735482643143,-1130.06,0.00011821,2]
[347043881,1735482643152,-500.0,0.00011821,2]
[347043883,1735482643162,-500.0,0.00011821,2]
[347043885,1735482643171,-643.62,0.00011821,2]
[347043887,1735482643182,-500.0,0.00011821,2]
[347043889,1735482643192,-500.0,0.00011821,2]
[347043891,1735482643201,-2539.39,0.00011821,2]
[347043893,1735482643211,-500.0,0.00011821,2]
[347043895,1735482643220,-1196.33,0.00011821,2]
[347043897,1735482643230,-685.5,0.00011821,2]
[347043899,1735482643245,-500.0,0.00011821,2]
[347043901,1735482643254,-2186.0,0.00011821,2]
[347043903,1735482643264,-500.0,0.00011821,2]
[347043905,1735482643274,-7807.75,0.00011822,2]
[347043907,1735482643283,-1656.0,0.00011822,2]
[347043910,1735482643292,-3446.42,0.00011822,2]
[347043914,1735482643301,-6680.76,0.00011822,2]
[347043917,1735482643311,-2717.63,0.00011822,2]
[347043920,1735482643320,-6905.71,0.00011822,2]
[347043923,1735482643329,-1091.19629193,0.00011822,2]
[347043928,1735482643345,-74.48370807,0.00011822,2]
[347043931,1735482643354,-2306.02438,0.0001187,2]
[347043934,1735482643364,-3074.73,0.00011922,2]
[347043936,1735482643374,-500.0,0.00011922,2]
[347043938,1735482643383,-465.93,0.00011922,2]
[347043940,1735482643392,-5938.7,0.00011922,2]
[347043942,1735482643402,-2546.5,0.00011922,2]
[347043943,1735482643411,-6991.15,0.00011922,2]
[347043945,1735482643421,-4358.33,0.00011922,2]
[347043948,1735482643431,-7298.46,0.00011922,2]
[347043950,1735482643441,-3145.76,0.00011922,2]
[347043951,1735482643450,-2771.66,0.00011922,2]
[347043953,1735482643460,-3712.47,0.00011922,2]
[347043955,1735482643469,-2128.64,0.00011922,2]
[347043958,1735482643479,-6267.54,0.00011922,2]
[347043960,1735482643493,-3076.63,0.00011922,2]
[347043962,1735482643503,-3809.83,0.00011922,2]
[347043964,1735482643513,-2262.49,0.00011922,2]
[347043966,1735482643523,-5810.5,0.00011922,2]
[347043968,1735482643533,-1200.0,0.00011972,2]
[347043970,1735482643543,-3334.01,0.00011983,2]
[347043972,1735482643552,-2969.2,0.00011983,2]
[347043974,1735482643562,-500.0,0.00011983,2]
[347043976,1735482643571,-1134.59,0.00011983,2]
[347043978,1735482643582,-623.96,0.00011983,2]
[347043980,1735482643591,-500.0,0.00011983,2]
[347043982,1735482643600,-2270.12,0.00011983,2]
[347043984,1735482643610,-502.47079623,0.00011983,2]
[347043986,1735482643619,-1869.36,0.00011983,2]
[347043988,1735482643628,-500.0,0.00011983,2]
[347043990,1735482643637,-500.0,0.00011983,2]
[347043992,1735482643647,-734.78,0.00011983,2]
[347043994,1735482643656,-1389.55,0.00011983,2]
[347043996,1735482643665,-4939.48,0.00011983,2]
[347043998,1735482643675,-2831.31,0.00011983,2]
[347044000,1735482643685,-1265.77,0.00011983,2]
[347044002,1735482643695,-2164.59,0.00011983,2]
[347044003,1735482643704,-2077.18,0.00011983,2]
[347044004,1735482643713,-500.0,0.00011983,2]
[347044005,1735482643722,-1459.55,0.00011983,2]
[347044006,1735482643731,-1225.61,0.00011983,2]
[347044007,1735482643742,-500.0,0.00011983,2]
[347044008,1735482643751,-883.63,0.00011983,2]
[347044009,1735482643760,-1226.16,0.00011983,2]
[347044010,1735482643769,-6373.53,0.00011983,2]
[347044012,1735482643779,-500.0,0.00011983,2]
[347044014,1735482643788,-500.0,0.00011983,2]
[347044016,1735482643797,-500.0,0.00011983,2]
[347044018,1735482643807,-1837.59,0.00011983,2]
[347044020,1735482643816,-500.0,0.00011983,2]
[347044022,1735482643825,-955.30062091,0.00011983,2]
[347044025,1735482643838,-297.04429955,0.00011983,2]
[347044027,1735482643849,-2824.06507954,0.00011983,2]
[347044029,1735482643858,-764.58314246,0.00011983,2]
[347044031,1735482643870,-161.50685754,0.00011983,2]
[347044033,1735482643880,-500.0,0.00011983,2]
[347044035,1735482643893,-500.0,0.00011983,2]
[347044037,1735482643902,-238.97253461,0.00011983,2]
[347044039,1735482643914,-18.74746539,0.00011983,2]
[347044041,1735482643923,-529.26206037,0.00011983,2]
[347044044,1735482643939,-1271.30793963,0.00011983,2]
[347044046,1735482643949,-763.21605883,0.00011983,2]
[347044048,1735482643960,-1758.35394117,0.00011983,2]
[347044050,1735482643970,-500.0,0.00011983,2]
[347044052,1735482643980,-4714.93,0.00011983,2]
[347044054,1735482643993,-500.0,0.00011983,2]
[347044056,1735482644002,-2356.16,0.00011983,2]
[347044058,1735482644011,-922.4,0.00011983,2]
[347044060,1735482644022,-500.0,0.00011983,2]
[347044062,1735482644031,-2263.57,0.00011983,2]
[347044064,1735482644040,-622.77,0.00011983,2]
[347044066,1735482644050,-500.0,0.00011983,2]
[347044068,1735482644059,-7933.22,0.00011983,2]
[347044070,1735482644068,-509.88,0.00011983,2]
[347044072,1735482644077,-986.79,0.00011983,2]
[347044074,1735482644087,-500.0,0.00011983,2]
[347044076,1735482644096,-500.0,0.00011983,2]
[347044078,1735482644105,-500.0,0.00011983,2]
[347044080,1735482644114,-500.0,0.00011983,2]
[347044082,1735482644123,-1247.24,0.00011983,2]
[347044084,1735482644132,-678.37,0.00011983,2]
[347044086,1735482644142,-5234.26,0.00011983,2]
[347044087,1735482644151,-2872.48,0.00011983,2]
[347044089,1735482644161,-1644.26,0.00011983,2]
[347044104,1735482644290,-1624.28,0.00011983,2]
[347044106,1735482644300,-3552.93,0.00011983,2]
[347044108,1735482644309,-1748.54,0.00011983,2]
[347044110,1735482644318,-500.0,0.00011983,2]
[347044112,1735482644327,-500.0,0.00011983,2]
[347044114,1735482644337,-1096.42,0.00011983,2]
[347044116,1735482644347,-500.0,0.00011983,2]
[347044118,1735482644356,-500.0,0.00011983,2]
[347044120,1735482644365,-500.0,0.00011983,2]
[347044122,1735482644375,-2450.99,0.00011983,2]
[347044124,1735482644384,-1305.74,0.00011983,2]
[347044126,1735482644394,-500.0,0.00011983,2]
[347044128,1735482644403,-500.0,0.00011983,2]
[347044130,1735482644412,-1127.57,0.00011983,2]
[347044132,1735482644421,-2332.42,0.00011983,2]
[347044134,1735482644430,-4130.824695,0.00011983,2]
[347044136,1735482644439,-4112.121387,0.00011983,2]
[347044137,1735482644449,-3250.86,0.00011983,2]
[347044139,1735482644459,-500.0,0.00011983,2]
[347044141,1735482644468,-24952.52,0.00011983,2]
[347044143,1735482644477,-500.0,0.00011983,2]
[347044145,1735482644489,-684.79,0.00011983,2]
[347044147,1735482644498,-1668.86,0.00011983,2]
[347044149,1735482644509,-2107.82,0.00011983,2]
[347044151,1735482644519,-500.0,0.00011983,2]
[347044153,1735482644528,-500.0,0.00011983,2]
[347044155,1735482644537,-500.0,0.00011983,2]
[347044157,1735482644547,-500.0,0.00011983,2]
[347044159,1735482644557,-500.0,0.00011983,2]
[347044161,1735482644566,-555.91,0.00011983,2]
[347044163,1735482644575,-2404.23,0.00011983,2]
[347044165,1735482644584,-500.0,0.00011983,2]
[347044167,1735482644593,-174.50266998,0.00011983,2]
[347044169,1735482644603,-1357.96,0.00011983,2]
[347044171,1735482644612,-518.6,0.00011983,2]
[347044173,1735482644622,-500.0,0.00011983,2]
[347044175,1735482644631,-500.0,0.00011983,2]
[347044177,1735482644640,-1072.34,0.00011983,2]
[347044179,1735482644649,-500.0,0.00011983,2]
[347044181,1735482644658,-3006.78,0.00011983,2]
[347044183,1735482644667,-4215.19,0.00011983,2]
[347044185,1735482644676,-1704.08,0.00011983,2]
[347044187,1735482644687,-500.0,0.00011983,2]
[347044189,1735482644697,-1603.45,0.00011983,2]
[347044191,1735482644707,-3106.64,0.00011983,2]
[347044193,1735482644717,-2004.59,0.00011983,2]
[347044195,1735482644727,-1195.9,0.00011983,2]
[347044197,1735482644737,-2717.91,0.00011983,2]
[347044199,1735482644747,-1434.26,0.00011983,2]
[347044201,1735482644756,-500.0,0.00011983,2]
[347044203,1735482644766,-923.67,0.00011983,2]
[347044205,1735482644775,-1688.9,0.00011983,2]
[347044207,1735482644785,-1521.08,0.00011983,2]
[347044209,1735482644794,-2690.86,0.00011983,2]
[347044211,1735482644803,-1142.94,0.00011983,2]
[347044213,1735482644812,-500.0,0.00011983,2]
[347044215,1735482644821,-500.0,0.00011983,2]
[347044217,1735482644831,-3776.5,0.00011983,2]
[347044219,1735482644840,-500.0,0.00011983,2]
[347044221,1735482644849,-1804.22,0.00011983,2]
[347044223,1735482644858,-500.0,0.00011983,2]
[347044225,1735482644867,-964.63,0.00011983,2]
[347044227,1735482644882,-1327.43,0.00011983,2]
[347044229,1735482644891,-18074.75,0.00011983,2]
[347044231,1735482644901,-500.0,0.00011983,2]
[347044233,1735482644910,-486.70559898,0.00011983,2]
[347044235,1735482644919,-2447.34,0.00011983,2]
[347044237,1735482644929,-14339.67,0.00011983,2]
[347044239,1735482644938,-2137.65,0.00011983,2]
[347044241,1735482644948,-2745.97,0.00011983,2]
[347044243,1735482644957,-3411.36,0.00011983,2]
[347044245,1735482644967,-1398.6,0.00011983,2]
[347044247,1735482644977,-503.50796318,0.00011983,2]
[347044249,1735482644987,-500.0,0.00011983,2]
[347044251,1735482644996,-500.0,0.00011983,2]
[347044253,1735482645005,-2110.41,0.00011983,2]
[347044255,1735482645015,-523.30010222,0.00011983,2]
[347044257,1735482645024,-500.0,0.00011983,2]
[347044259,1735482645034,-2461.04,0.00011983,2]
[347044261,1735482645043,-8517.37,0.00011983,2]
[347044263,1735482645053,-310.24979965,0.00011983,2]
[347044265,1735482645062,-500.0,0.00011983,2]
[347044267,1735482645071,-1200.55,0.00011983,2]
[347044269,1735482645081,-501.12188557,0.00011983,2]
[347044270,1735482645091,-2255.91,0.00011983,2]
[347044271,1735482645100,-504.01767841,0.00011983,2]
[347044272,1735482645110,-1536.38,0.00011983,2]
[347044273,1735482645120,-500.0,0.00011983,2]
[347044274,1735482645130,-1281.14,0.00011983,2]
[347044275,1735482645140,-2204.22,0.00011983,2]
[347044277,1735482645150,-500.0,0.00011983,2]
[347044279,1735482645159,-500.0,0.00011983,2]
[347044281,1735482645168,-500.0,0.00011983,2]
[347044283,1735482645178,-4579.59,0.00011983,2]
[347044285,1735482645187,-500.0,0.00011983,2]
[347044287,1735482645196,-2033.42,0.00011983,2]
[347044289,1735482645206,-450.0,0.00012,2]
[347044291,1735482645215,-500.0,0.00012,2]
[347044293,1735482645225,-1000.0,0.00012021,2]
[347044295,1735482645234,-1125.24,0.00012027,2]
[347044297,1735482645245,-998.66383538,0.0001203,2]
[347044299,1735482645254,-507.94696116,0.00012095,2]
[347044301,1735482645264,-500.0,0.00012095,2]
[347044303,1735482645274,-1130.06,0.00012095,2]
[347044305,1735482645283,-643.62,0.00012095,2]
[347044307,1735482645292,-500.0,0.00012095,2]
[347044309,1735482645302,-500.0,0.00012095,2]
[347044311,1735482645311,-2539.39,0.00012095,2]
[347044313,1735482645321,-500.0,0.00012095,2]
[347044315,1735482645330,-1196.33,0.00012095,2]
[347044317,1735482645340,-685.5,0.00012095,2]
[347044318,1735482645349,-377.84690824,0.00012095,2]
[347044320,1735482645359,-2186.0,0.00012095,2]
[347044322,1735482645369,-371.34630481,0.00012095,2]
[347044324,1735482645378,-7807.75,0.00012096,2]
[347044326,1735482645388,-1656.0,0.00012096,2]
[347044328,1735482645398,-3126.07514883,0.00012096,2]
[347044398,1735482646061,-320.34485117,0.00012096,2]
[347044400,1735482646070,-6680.76,0.00012096,2]
[347044402,1735482646080,-2717.63,0.00012096,2]
[347044404,1735482646089,-6905.71,0.00012096,2]
[347044406,1735482646098,-1165.68,0.00012096,2]
[347044407,1735482646107,-3074.73,0.00012196,2]
[347044410,1735482646117,-500.0,0.00012196,2]
[347044411,1735482646126,-5938.7,0.00012196,2]
[347044413,1735482646136,-2546.5,0.00012196,2]
[347044415,1735482646145,-6991.15,0.00012196,2]
[347044417,1735482646155,-4358.33,0.00012196,2]
[347044419,1735482646164,-7298.46,0.00012196,2]
[347044421,1735482646174,-3145.76,0.00012196,2]
[347044423,1735482646183,-2771.66,0.00012196,2]
[347044425,1735482646192,-3712.47,0.00012196,2]
[347044427,1735482646201,-2128.64,0.00012196,2]
[347044429,1735482646212,-6267.54,0.00012196,2]
[347044431,1735482646222,-3076.63,0.00012196,2]
[347044433,1735482646231,-3809.83,0.00012196,2]
[347044435,1735482646242,-1749.00962412,0.00012196,2]
[347044438,1735482646254,-513.48037588,0.00012196,2]
[347044440,1735482646263,-5810.5,0.00012196,2]
[347044442,1735482646273,-3570.81536704,0.00012251,2]
[347044444,1735482646282,-3334.01,0.00012257,2]
[347044446,1735482646292,-2969.2,0.00012257,2]
[347044448,1735482646301,-1134.59,0.00012257,2]
[347044450,1735482646310,-623.96,0.00012257,2]
[347044452,1735482646321,-500.0,0.00012257,2]
[347044454,1735482646330,-2270.12,0.00012257,2]
[347044456,1735482646340,-1869.36,0.00012257,2]
[347044458,1735482646350,-500.0,0.00012257,2]
[347044460,1735482646360,-500.0,0.00012257,2]
[347044462,1735482646371,-734.78,0.00012257,2]
[347044464,1735482646381,-1389.55,0.00012257,2]
[347044465,1735482646391,-100.25835648,0.00012257,2]
[347044466,1735482646405,-4839.22164352,0.00012257,2]
[347044467,1735482646416,-2831.31,0.00012257,2]
[347044468,1735482646427,-1265.77,0.00012257,2]
[347044469,1735482646438,-2164.59,0.00012257,2]
[347044470,1735482646449,-2077.18,0.00012257,2]
[347044471,1735482646460,-500.0,0.00012257,2]
[347044473,1735482646472,-1459.55,0.00012257,2]
[347044475,1735482646483,-1225.61,0.00012257,2]
[347044477,1735482646500,-500.0,0.00012257,2]
[347044479,1735482646512,-883.63,0.00012257,2]
[347044481,1735482646523,-1226.16,0.00012257,2]
[347044482,1735482646537,-6373.53,0.00012257,2]
[347044484,1735482646548,-500.0,0.00012257,2]
[347044487,1735482646560,-500.0,0.00012257,2]
[347044489,1735482646571,-1837.59,0.00012257,2]
[347044490,1735482646582,-486.76847912,0.00012257,2]
[347044492,1735482646592,-4076.41,0.00012257,2]
[347044494,1735482646603,-926.09,0.00012257,2]
[347044496,1735482646614,-500.0,0.00012257,2]
[347044498,1735482646625,-500.0,0.00012257,2]
[347044500,1735482646636,-1800.57,0.00012257,2]
[347044502,1735482646647,-2521.57,0.00012257,2]
[347044504,1735482646661,-500.0,0.00012257,2]
[347044506,1735482646671,-4714.93,0.00012257,2]
[347044508,1735482646683,-2356.16,0.00012257,2]
[347044510,1735482646695,-922.4,0.00012257,2]
[347044512,1735482646706,-500.0,0.00012257,2]
[347044514,1735482646718,-2263.57,0.00012257,2]
[347044517,1735482646739,-622.77,0.00012257,2]
[347044520,1735482646768,-500.0,0.00012257,2]
[347044522,1735482646787,-7933.22,0.00012257,2]
[347044525,1735482646808,-986.79,0.00012257,2]
[347044528,1735482646828,-500.0,0.00012257,2]
[347044530,1735482646845,-500.0,0.00012257,2]
[347044533,1735482646863,-500.0,0.00012257,2]
[347044535,1735482646886,-1247.24,0.00012257,2]
[347044538,1735482646906,-678.37,0.00012257,2]
[347044541,1735482646926,-5234.26,0.00012257,2]
[347044544,1735482646945,-2872.48,0.00012257,2]
[347044546,1735482646962,-1644.26,0.00012257,2]
[347044548,1735482646984,-1624.28,0.00012257,2]
[347044550,1735482647011,-1748.54,0.00012257,2]
[347044553,1735482647026,-3552.93,0.00012257,2]
[347044556,1735482647047,-1096.42,0.00012257,2]
[347044558,1735482647062,-500.0,0.00012257,2]
[347044561,1735482647084,-2450.99,0.00012257,2]
[347044563,1735482647100,-1305.74,0.00012257,2]
[347044566,1735482647115,-1127.57,0.00012257,2]
[347044569,1735482647139,-2332.42,0.00012257,2]
[347044572,1735482647157,-152.736339,0.00012257,2]
[347044574,1735482647174,-4130.824695,0.00012257,2]
[347044576,1735482647191,-4112.121387,0.00012257,2]
[347044579,1735482647208,-3250.86,0.00012257,2]
[347044582,1735482647225,-500.0,0.00012257,2]
[347044584,1735482647245,-13408.56088786,0.00012257,2]
[347044593,1735482647333,-11543.95911214,0.00012257,2]
[347044595,1735482647349,-447.76,0.00012257,2]
[347044598,1735482647367,-684.79,0.00012257,2]
[347044601,1735482647383,-1668.86,0.00012257,2]
[347044603,1735482647399,-2107.82,0.00012257,2]
[347044605,1735482647415,-500.0,0.00012257,2]
[347044608,1735482647431,-500.0,0.00012257,2]
[347044611,1735482647448,-500.0,0.00012257,2]
[347044613,1735482647465,-555.91,0.00012257,2]
[347044615,1735482647482,-2404.23,0.00012257,2]
[347044618,1735482647504,-1357.96,0.00012257,2]
[347044621,1735482647523,-518.6,0.00012257,2]
[347044623,1735482647539,-500.0,0.00012257,2]
[347044626,1735482647556,-500.0,0.00012257,2]
[347044628,1735482647573,-72.2020732,0.00012257,2]
[347044631,1735482647593,-1000.1379268,0.00012257,2]
[347044634,1735482647610,-500.0,0.00012257,2]
[347044636,1735482647627,-3006.78,0.00012257,2]
[347044639,1735482647644,-4215.19,0.00012257,2]
[347044641,1735482647659,-1704.08,0.00012257,2]
[347044644,1735482647676,-500.0,0.00012257,2]
[347044646,1735482647693,-1603.45,0.00012257,2]
[347044649,1735482647709,-3106.64,0.00012257,2]
[347044651,1735482647726,-2004.59,0.00012257,2]
[347044654,1735482647745,-1195.9,0.00012257,2]
[347044656,1735482647762,-2717.91,0.00012257,2]
[347044659,1735482647778,-1434.26,0.00012257,2]
[347044661,1735482647794,-500.0,0.00012257,2]
[347044663,1735482647810,-923.67,0.00012257,2]
[347044666,1735482647826,-1688.9,0.00012257,2]
[347044667,1735482647842,-1521.08,0.00012257,2]
[347044668,1735482647857,-2690.86,0.00012257,2]
[347044669,1735482647873,-1142.94,0.00012257,2]
[347044670,1735482647889,-500.0,0.00012257,2]
[347044672,1735482647909,-3776.5,0.00012257,2]
[347044675,1735482647927,-1804.22,0.00012257,2]
[347044677,1735482647943,-500.0,0.00012257,2]
[347044680,1735482647960,-964.63,0.00012257,2]
[347044682,1735482647976,-1327.43,0.00012257,2]
[347044685,1735482647995,-18074.75,0.00012257,2]
[347044688,1735482648013,-500.0,0.00012257,2]
[347044690,1735482648030,-2447.34,0.00012257,2]
[347044693,1735482648046,-14339.67,0.00012257,2]
[347044695,1735482648061,-2137.65,0.00012257,2]
[347044697,1735482648077,-2745.97,0.00012257,2]
[347044700,1735482648091,-3411.36,0.00012257,2]
[347044702,1735482648105,-1398.6,0.00012257,2]
[347044704,1735482648118,-2110.41,0.00012257,2]
[347044707,1735482648132,-2461.04,0.00012257,2]
[347044709,1735482648144,-8517.37,0.00012257,2]
[347044711,1735482648158,-500.0,0.00012257,2]
[347044714,1735482648171,-1200.55,0.00012257,2]
[347044716,1735482648184,-2255.91,0.00012257,2]
[347044718,1735482648197,-1536.38,0.00012257,2]
[347044721,1735482648211,-1281.14,0.00012257,2]
[347044723,1735482648223,-2204.22,0.00012257,2]
[347044725,1735482648236,-500.0,0.00012257,2]
[347044727,1735482648253,-500.0,0.00012257,2]
[347044730,1735482648269,-324.52929734,0.00012257,2]
[347044732,1735482648285,-4579.59,0.00012257,2]
[347044735,1735482648302,-216.79957622,0.00012257,2]
[347044737,1735482648318,-2033.42,0.00012257,2]
[347044739,1735482648332,-1125.24,0.00012301,2]
[347044742,1735482648345,-150.0,0.00012302,2]
[347044744,1735482648360,-500.0,0.00012328,2]
[347044746,1735482648374,-500.0,0.00012328,2]
[347044749,1735482648388,-500.0,0.00012328,2]
[347044751,1735482648406,-253.036,0.0001235,2]
[347044754,1735482648424,-150.0,0.00012364,2]